No. of Trans,Dept Family,Entity Name,Cert Date,Supplier Name,Reference,Gross Amt,Group/Department,Type of Expenditure - Subjective Codes
1,DCMS,EH,30/04/2012,ESRI (UK) Ltd,0020044081,"87,756.00",Resources Group - IMT Department,Computer consultancy
2,DCMS,EH,30/04/2012,Purcell Miller Tritton LLP,0020044071,"41,251.80",National Collections Group - Site Conservation Programme,Fees for Professional Advice
3,DCMS,EH,30/05/2012,Purcell Miller Tritton LLP,0020046553,"41,251.80 ",National Collections Group - Site Conservation Programme,Fees for Professional Advice
4,DCMS,EH,30/05/2012,Carisbrooke Castle Museum Trust,0020046211,"25,730.00 ",National Collections Group - Historic Properties Department,Income Sharing Agreement
5,DCMS,EH,28/05/2012,The Colourhouse Ltd,0020046236,"28,787.00 ",Heritage Protection & Planning Group - Heritage Protection & Planning Centre,Publications WIP
6,DCMS,EH,26/06/2012,Treasure and Son,0040001013,"2,846.68 ",National Collections Group - Property Maintenance Programme,Annual Cyclical Works-Building
7,DCMS,EH,26/06/2012,Treasure and Son,0040001013,"24,929.74 ",National Collections Group - Property Maintenance Programme,Annual Cyclical Works-Building
8,DCMS,EH,31/05/2012,T Butler and Sons Sawston Ltd,0020046745,"2,913.36 ",National Collections Group - Property Maintenance Programme,Planned Maintenance
9,DCMS,EH,31/05/2012,T Butler and Sons Sawston Ltd,0020046745,"44,179.20 ",National Collections Group - Property Maintenance Programme,Planned Maintenance
10,DCMS,EH,24/07/2012,R Moulding and Co Salisbury Ltd,0040003690,"36,167.20 ",National Collections Group - Property Maintenance Programme,Annual Cyclical Works-Building
11,DCMS,EH,20/08/2012,R Moulding and Co Salisbury Ltd,0040006913,"25,556.34 ",National Collections Group - Property Maintenance Programme,Annual Cyclical Works-Building
12,DCMS,EH,02/05/2012,W H Smith and R Ensor SAP Scheme,0020042804,"6,091.15 ",Resources Group - Operational Estates,Rent - Operating Leases
13,DCMS,EH,02/05/2012,W H Smith and R Ensor SAP Scheme,0020042804,"35,516.40 ",Resources Group - Operational Estates,Rent - Operating Leases
14,DCMS,EH,02/07/2012,W H Smith and R Ensor SAP Scheme,0040001464,"35,516.40 ",Resources Group - Operational Estates,Rent - Operating Leases
15,DCMS,EH,21/06/2012,Wessex Archaeology,0020047526,"59,787.38 ",Heritage Protection & Planning Group - Heritage Protection Department,Maritime Consultants
16,DCMS,EH,23/07/2012,Wessex Archaeology,0040002578,"50,000.00 ",Heritage Protection & Planning Group - Heritage Protection Department,Maritime Consultants
17,DCMS,EH,14/06/2012,Knight Frank LLP,0020047957,"16,747.36 ",Resources Group - Operational Estates,Building Service Charges
18,DCMS,EH,14/06/2012,Knight Frank LLP,0020047957,"19,384.04 ",Resources Group - Operational Estates,Rent - Operating Leases
19,DCMS,EH,30/04/2012,Wise Worksafe,0020042498,"57,514.60",National Collections Group - Historic Properties Department,Clothing & uniforms
20,DCMS,EH,20/04/2012,Sykes and Son Limited,0020042604,"11,065.20",National Collections Group - Property Maintenance Programme,Planned Maintenance
21,DCMS,EH,20/04/2012,Sykes and Son Limited,0020042604,"134,743.20",National Collections Group - Property Investment Programme,WIP Refurb & Fitting Out
22,DCMS,EH,22/05/2012,Sykes and Son Limited,0020045911,"2,706.00 ",National Collections Group - Property Maintenance Programme,Responsive Repairs M & E
23,DCMS,EH,22/05/2012,Sykes and Son Limited,0020045911,"5,372.27 ",National Collections Group - Property Maintenance Programme,Responsive Repairs M & E
24,DCMS,EH,22/05/2012,Sykes and Son Limited,0020045911,"20,313.29 ",National Collections Group - Property Maintenance Programme,Responsive Repairs M & E
25,DCMS,EH,11/06/2012,Sykes and Son Limited,0020046566,"9,952.80 ",National Collections Group - Property Maintenance Programme,Planned Maintenance
26,DCMS,EH,11/06/2012,Sykes and Son Limited,0020046566,"13,358.44 ",National Collections Group - Property Investment Programme,WIP Refurb & Fitting Out
27,DCMS,EH,11/06/2012,Sykes and Son Limited,0020046566,"32,674.84 ",National Collections Group - Property Investment Programme,WIP Refurb & Fitting Out
28,DCMS,EH,11/06/2012,Sykes and Son Limited,0020046566,"34,451.96 ",National Collections Group - Property Investment Programme,WIP Refurb & Fitting Out
29,DCMS,EH,11/06/2012,Sykes and Son Limited,0020046566,"43,745.96 ",National Collections Group - Property Investment Programme,WIP Refurb & Fitting Out
30,DCMS,EH,23/05/2012,Skillington Workshop Ltd,0020046131,"37,813.36 ",National Collections Group - Site Conservation Programme,Works for Heritage Buildings
31,DCMS,EH,14/06/2012,Gander and White Shipping Ltd,0020044651,"36,283.20 ",National Collections Group - Site Conservation Programme,Historic artefacts maint
32,DCMS,EH,26/06/2012,Gander and White Shipping Ltd,0020047052,"36,283.20 ",National Collections Group - Site Conservation Programme,Historic artefacts maint
33,DCMS,EH,06/08/2012,DBR (London) Ltd,0040004471,"27,680.70 ",National Collections Group - Property Maintenance Programme,Annual Cyclical Works-Building
34,DCMS,EH,28/05/2012,PAYE Stonework and Restoration Ltd,0020046254,"126,660.64 ",National Collections Group - Site Conservation Programme,Works for Heritage Buildings
35,DCMS,EH,18/06/2012,PAYE Stonework and Restoration Ltd,0020047647,"159,619.91 ",National Collections Group - Site Conservation Programme,Works for Heritage Buildings
36,DCMS,EH,09/07/2012,PAYE Stonework and Restoration Ltd,0040001982,"98,457.38 ",National Collections Group - Site Conservation Programme,Works for Heritage Buildings
37,DCMS,EH,03/08/2012,PAYE Stonework and Restoration Ltd,0040004550,"27,436.94 ",National Collections Group - Site Conservation Programme,Works for Heritage Buildings
38,DCMS,EH,03/08/2012,PAYE Stonework and Restoration Ltd,0040004550,"64,019.56 ",National Collections Group - Site Conservation Programme,WIP Operational Building Works
39,DCMS,EH,13/08/2012,PAYE Stonework and Restoration Ltd,0040005382,"209,455.57 ",National Collections Group - Site Conservation Programme,Works for Heritage Buildings
40,DCMS,EH,30/08/2012,PAYE Stonework and Restoration Ltd,0040007633,"29,369.24 ",National Collections Group - Site Conservation Programme,Works for Heritage Buildings
41,DCMS,EH,30/08/2012,PAYE Stonework and Restoration Ltd,0040007633,"68,528.26 ",National Collections Group - Site Conservation Programme,WIP Operational Building Works
42,DCMS,EH,07/06/2012,Past Pleasures Ltd,0020044451,"71,280.00 ",National Collections Group - Historic Properties Department,Exhibits/Displays
43,DCMS,EH,10/08/2012,Past Pleasures Ltd,0040005393,"27,600.00 ",National Collections Group - Historic Properties Department,Exhibits/Displays
44,DCMS,EH,11/05/2012,Gillards Worldwide,0020045051,"57,551.78 ",National Collections Group - Historic Properties Department,Storage & warehousing
45,DCMS,EH,14/06/2012,Gillards Worldwide,0020047995,"70,164.75 ",National Collections Group - Historic Properties Department,Storage & warehousing
46,DCMS,EH,08/08/2012,Gillards Worldwide,0040002807,"54,521.95 ",National Collections Group - Historic Properties Department,Storage & warehousing
47,DCMS,EH,28/08/2012,Gillards Worldwide,0040006164,"72,946.35 ",National Collections Group - Historic Properties Department,Storage & warehousing
48,DCMS,EH,30/05/2012,Norman Disney and Young,0020043246,"1,231.20 ",National Collections Group - Property Investment Programme,WIP Professional Works Advice
49,DCMS,EH,30/05/2012,Norman Disney and Young,0020043246,"3,208.80 ",National Collections Group - Property Investment Programme,WIP Professional Works Advice
50,DCMS,EH,30/05/2012,Norman Disney and Young,0020043246,"15,706.80 ",National Collections Group - Property Investment Programme,WIP Professional Works Advice
51,DCMS,EH,30/05/2012,Norman Disney and Young,0020043246,"57,853.20 ",National Collections Group - Property Investment Programme,WIP Professional Works Advice
52,DCMS,EH,07/06/2012,Historic Property Restoration Ltd,0020047000,"1,321.93 ",National Collections Group - Property Maintenance Programme,Leased Accomodation Maint
53,DCMS,EH,07/06/2012,Historic Property Restoration Ltd,0020047000,"1,335.32 ",National Collections Group - Property Maintenance Programme,Responsive Repairs M & E
54,DCMS,EH,07/06/2012,Historic Property Restoration Ltd,0020047000,"2,941.70 ",National Collections Group - Property Maintenance Programme,Responsive Maint Building
55,DCMS,EH,07/06/2012,Historic Property Restoration Ltd,0020047000,"6,937.69 ",National Collections Group - Property Maintenance Programme,Planned Maintenance
56,DCMS,EH,07/06/2012,Historic Property Restoration Ltd,0020047000,"15,699.86 ",National Collections Group - Property Maintenance Programme,Responsive Maint Building
57,DCMS,EH,07/06/2012,Historic Property Restoration Ltd,0020047000,"22,545.54 ",National Collections Group - Property Maintenance Programme,Responsive Repairs M & E
58,DCMS,EH,08/06/2012,Historic Property Restoration Ltd,0020047380,669.96 ,National Collections Group - Property Maintenance Programme,Annual Cyclical Work M & E
59,DCMS,EH,08/06/2012,Historic Property Restoration Ltd,0020047380,"1,019.57 ",National Collections Group - Property Maintenance Programme,Leased Accomodation Maint
60,DCMS,EH,08/06/2012,Historic Property Restoration Ltd,0020047380,"2,532.36 ",National Collections Group - Property Maintenance Programme,Leased Accomodation Maint
61,DCMS,EH,08/06/2012,Historic Property Restoration Ltd,0020047380,"3,358.62 ",National Collections Group - Property Maintenance Programme,Annual Cyclical Work M & E
62,DCMS,EH,08/06/2012,Historic Property Restoration Ltd,0020047380,"10,365.20 ",National Collections Group - Property Maintenance Programme,Annual Cyclical Works-Building
63,DCMS,EH,08/06/2012,Historic Property Restoration Ltd,0020047380,"38,106.10 ",National Collections Group - Property Maintenance Programme,Annual Cyclical Works-Building
64,DCMS,EH,08/06/2012,Historic Property Restoration Ltd,0020047380,"42,000.00 ",National Collections Group - Property Maintenance Programme,Annual Cyclical Work M & E
65,DCMS,EH,08/06/2012,Historic Property Restoration Ltd,0020047380,"48,000.00 ",National Collections Group - Property Maintenance Programme,Annual Cyclical Works-Building
66,DCMS,EH,06/07/2012,Historic Property Restoration Ltd,0040002180,334.37 ,National Collections Group - Property Maintenance Programme,Responsive Repairs M & E
67,DCMS,EH,06/07/2012,Historic Property Restoration Ltd,0040002180,"1,075.35 ",National Collections Group - Property Maintenance Programme,Leased Accomodation Maint
68,DCMS,EH,06/07/2012,Historic Property Restoration Ltd,0040002180,"1,948.56 ",National Collections Group - Property Maintenance Programme,Responsive Maint Building
69,DCMS,EH,06/07/2012,Historic Property Restoration Ltd,0040002180,"17,533.45 ",National Collections Group - Property Maintenance Programme,Responsive Maint Building
70,DCMS,EH,06/07/2012,Historic Property Restoration Ltd,0040002180,"19,673.90 ",National Collections Group - Property Maintenance Programme,Responsive Repairs M & E
71,DCMS,EH,09/07/2012,Historic Property Restoration Ltd,0040002181,798.38 ,National Collections Group - Property Maintenance Programme,Leased Accomodation Maint
72,DCMS,EH,09/07/2012,Historic Property Restoration Ltd,0040002181,831.18 ,National Collections Group - Property Maintenance Programme,Annual Cyclical Work M & E
73,DCMS,EH,09/07/2012,Historic Property Restoration Ltd,0040002181,"6,654.78 ",National Collections Group - Property Maintenance Programme,Annual Cyclical Works-Building
74,DCMS,EH,09/07/2012,Historic Property Restoration Ltd,0040002181,"16,756.28 ",National Collections Group - Property Maintenance Programme,Annual Cyclical Work M & E
75,DCMS,EH,09/07/2012,Historic Property Restoration Ltd,0040002181,"51,625.96 ",National Collections Group - Property Maintenance Programme,Annual Cyclical Works-Building
76,DCMS,EH,27/07/2012,Historic Property Restoration Ltd,0040003407,"33,780.36 ",National Collections Group - Site Conservation Programme,Fees for Professional Advice
77,DCMS,EH,02/08/2012,Historic Property Restoration Ltd,0040004676,262.82 ,National Collections Group - Property Maintenance Programme,Responsive Repairs M & E
78,DCMS,EH,02/08/2012,Historic Property Restoration Ltd,0040004676,743.40 ,National Collections Group - Property Maintenance Programme,Planned Maintenance
79,DCMS,EH,02/08/2012,Historic Property Restoration Ltd,0040004676,947.43 ,National Collections Group - Property Maintenance Programme,Leased Accomodation Maint
80,DCMS,EH,02/08/2012,Historic Property Restoration Ltd,0040004676,"2,134.82 ",National Collections Group - Property Maintenance Programme,Responsive Maint Building
81,DCMS,EH,02/08/2012,Historic Property Restoration Ltd,0040004676,"3,175.79 ",National Collections Group - Property Maintenance Programme,Planned Maintenance
82,DCMS,EH,02/08/2012,Historic Property Restoration Ltd,0040004676,"16,662.72 ",National Collections Group - Property Maintenance Programme,Responsive Repairs M & E
83,DCMS,EH,02/08/2012,Historic Property Restoration Ltd,0040004676,"18,686.93 ",National Collections Group - Property Maintenance Programme,Responsive Maint Building
84,DCMS,EH,02/08/2012,Historic Property Restoration Ltd,0040004677,"1,647.53 ",National Collections Group - Property Maintenance Programme,Annual Cyclical Work M & E
85,DCMS,EH,02/08/2012,Historic Property Restoration Ltd,0040004677,"4,488.18 ",National Collections Group - Property Maintenance Programme,Annual Cyclical Works-Building
86,DCMS,EH,02/08/2012,Historic Property Restoration Ltd,0040004677,"6,395.99 ",National Collections Group - Property Maintenance Programme,Annual Cyclical Works-Building
87,DCMS,EH,02/08/2012,Historic Property Restoration Ltd,0040004677,"13,551.85 ",National Collections Group - Property Maintenance Programme,Annual Cyclical Work M & E
88,DCMS,EH,20/08/2012,Historic Property Restoration Ltd,0040005667,"12,000.00 ",National Collections Group - Site Conservation Programme,Fees for Professional Advice
89,DCMS,EH,20/08/2012,Historic Property Restoration Ltd,0040005667,"24,531.08 ",National Collections Group - Site Conservation Programme,Fees for Professional Advice
90,DCMS,EH,18/06/2012,Mason Owen and Partners,0020047838,"9,773.70 ",Resources Group - Operational Estates,Building Service Charges
91,DCMS,EH,18/06/2012,Mason Owen and Partners,0020047838,"17,700.00 ",Resources Group - Operational Estates,Rent - Operating Leases
92,DCMS,EH,18/06/2012,Ratcliffes,0020047505,"283,500.00 ",Resources Group - Operational Estates,Rent - Operating Leases
93,DCMS,EH,01/08/2012,Visit Kent Ltd,0040004506,"30,000.00 ",National Collections Group - Marketing Department,Media
94,DCMS,EH,31/05/2012,Grayling UK Ltd,0020046779,894.00 ,National Collections Group - Marketing Department,Public Relations
95,DCMS,EH,31/05/2012,Grayling UK Ltd,0020046779,"1,200.00 ",National Collections Group - Marketing Department,Public Relations
96,DCMS,EH,31/05/2012,Grayling UK Ltd,0020046779,"1,200.00 ",National Collections Group - Marketing Department,Public Relations
97,DCMS,EH,31/05/2012,Grayling UK Ltd,0020046779,"3,600.00 ",National Collections Group - Marketing Department,Public Relations
98,DCMS,EH,31/05/2012,Grayling UK Ltd,0020046779,"11,086.80 ",National Collections Group - Marketing Department,Public Relations
99,DCMS,EH,31/05/2012,Grayling UK Ltd,0020046779,"11,937.60 ",National Collections Group - Marketing Department,Public Relations
100,DCMS,EH,29/06/2012,EDF Energy,0020044647,63.03 ,Resources Group - Human Resources Department,Electricity
101,DCMS,EH,29/06/2012,EDF Energy,0020044647,"26,879.18 ",Resources Group - Human Resources Department,Electricity
102,DCMS,EH,06/07/2012,EDF Energy,0040000002,73.88 ,Resources Group - Human Resources Department,Electricity
103,DCMS,EH,06/07/2012,EDF Energy,0040000002,"25,886.87 ",Resources Group - Human Resources Department,Electricity
104,DCMS,EH,09/07/2012,EDF Energy,0040000062,85.82 ,Resources Group - Human Resources Department,Electricity
105,DCMS,EH,09/07/2012,EDF Energy,0040000062,"27,571.86 ",Resources Group - Human Resources Department,Electricity
106,DCMS,EH,06/08/2012,EDF Energy,0040003591,63.03 ,Resources Group - Human Resources Department,Electricity
107,DCMS,EH,06/08/2012,EDF Energy,0040003591,"25,311.78 ",Resources Group - Human Resources Department,Electricity
108,DCMS,EH,21/08/2012,EDF Energy,0040005536,118.86 ,Resources Group - Human Resources Department,Electricity
109,DCMS,EH,21/08/2012,EDF Energy,0040005536,"25,168.39 ",Resources Group - Human Resources Department,Electricity
110,DCMS,EH,18/06/2012,Sinclair Knight Merz (Europe) Ltd,0020046548,"42,379.20 ",National Collections Group - Property Investment Programme,WIP Professional Works Advice
111,DCMS,EH,17/07/2012,ISS Facility Services Ltd - Security,0040002434,"26,880.00 ",National Collections Group - Property Maintenance Programme,Security Guard & Monitor Stati
112,DCMS,EH,08/08/2012,ISS Facility Services Ltd - Security,0040005665,"26,880.00 ",National Collections Group - Property Maintenance Programme,Security Guard & Monitor Stati
113,DCMS,EH,16/08/2012,National Audit Office,0040005207,"9,000.00 ",Resources Group - Corporate,Audit Fee
114,DCMS,EH,16/08/2012,National Audit Office,0040005207,"36,000.00 ",Resources Group - Finance & Procurement Department,Audit Fee
115,DCMS,EH,01/05/2012,Enterprise Rent A Car UK Ltd,0020044222,"34,518.76 ",Resources Group - Corporate,Car Hire
116,DCMS,EH,08/06/2012,Enterprise Rent A Car UK Ltd,0020047550,"38,728.12 ",Resources Group - Corporate,Car Hire
117,DCMS,EH,04/07/2012,Enterprise Rent A Car UK Ltd,0020048266,"35,715.10 ",Resources Group - Corporate,Car Hire
118,DCMS,EH,01/08/2012,Enterprise Rent A Car UK Ltd,0020048532,"49,912.56 ",Resources Group - Corporate,Car Hire
119,DCMS,EH,31/08/2012,Enterprise Rent A Car UK Ltd,0020048913,"35,109.80 ",Resources Group - Corporate,Car Hire
120,DCMS,EH,06/06/2012,Torex RBS Ltd,0020047225,"42,399.71 ",Resources Group - IMT Department,Software Maintenance
121,DCMS,EH,23/08/2012,Torex RBS Ltd,0040007254,"42,399.71 ",Resources Group - IMT Department,Software Maintenance
122,DCMS,EH,30/05/2012,First Choice Coffee Ltd,0020045894,"2,760.00 ",National Collections Group - Property Investment Programme,Equipment <10k
123,DCMS,EH,30/05/2012,First Choice Coffee Ltd,0020045894,"3,360.00 ",National Collections Group - Historic Properties Department,Equipment <10k
124,DCMS,EH,30/05/2012,First Choice Coffee Ltd,0020045894,"8,340.00 ",National Collections Group - Historic Properties Department,Equipment <10k
125,DCMS,EH,30/05/2012,First Choice Coffee Ltd,0020045894,"8,340.00 ",National Collections Group - Historic Properties Department,Equipment <10k
126,DCMS,EH,30/05/2012,First Choice Coffee Ltd,0020045894,"20,388.00 ",National Collections Group - Historic Properties Department,Plant & Equipment > 10k
127,DCMS,EH,18/05/2012,Pace Fuelcare Ltd,0020045366,"28,354.86 ",National Collections Group - Historic Properties Department,Gas & Oil
128,DCMS,EH,17/07/2012,Seven,0040002860,"31,002.00 ",National Collections Group - Marketing Department,Marketing Publishing
129,DCMS,EH,17/07/2012,Seven,0040002860,"137,900.40 ",National Collections Group - Marketing Department,Marketing Publishing
130,DCMS,EH,22/05/2012,AIS Total Security Ltd,0020044982,"27,412.42 ",National Collections Group - Property Maintenance Programme,Annual Cyclical Work M & E
131,DCMS,EH,02/05/2012,Coulson Group Ltd,0020043856,"42,523.25 ",National Collections Group - Property Investment Programme,WIP Refurb & Fitting Out
132,DCMS,EH,28/05/2012,Coulson Group Ltd,0020046122,"123,253.18 ",National Collections Group - Property Investment Programme,WIP Refurb & Fitting Out
133,DCMS,EH,29/06/2012,Coulson Group Ltd,0040001140,"65,030.30 ",National Collections Group - Property Investment Programme,WIP Refurb & Fitting Out
134,DCMS,EH,41117,Coulson Group Ltd,0040004327,131847.2,National Collections Group - Property Investment Programme,WIP Refurb & Fitting Out
135,DCMS,EH,10/08/2012,Evolve Business Consultancy Ltd,0040005085,"43,200.00 ",Resources Group - IMT Department,Computer consultancy
136,DCMS,EH,15/08/2012,University of Warwick,0040006127,"40,130.00 ",Chief Executive - Chief Executive,Conference set-up costs
137,DCMS,EH,04/07/2012,Pureprint Group Ltd,0040001420,"39,610.00 ",Heritage Protection & Planning Group - Heritage Protection & Planning Centre,Finished Guidebooks
138,DCMS,EH,23/05/2012,Robert Woodhead Ltd,0020046022,"34,094.24 ",National Collections Group - Property Investment Programme,Works for Heritage Buildings
139,DCMS,EH,17/07/2012,Robert Woodhead Ltd,0040000862,"59,478.23 ",National Collections Group - Property Investment Programme,Works for Heritage Buildings
140,DCMS,EH,17/08/2012,Robert Woodhead Ltd,0040006438,"32,610.00 ",National Collections Group - Property Investment Programme,Works for Heritage Buildings
141,DCMS,EH,21/05/2012,Quadron Services Ltd,0020045545,"3,074.97 ",National Collections Group - Property Maintenance Programme,Annual Cyclical Works-Building
142,DCMS,EH,21/05/2012,Quadron Services Ltd,0020045545,"11,942.10 ",National Collections Group - Property Maintenance Programme,Annual Cyclical Works-Building
143,DCMS,EH,21/05/2012,Quadron Services Ltd,0020045545,"19,591.32 ",National Collections Group - Property Maintenance Programme,Annual Cyclical Works-Building
144,DCMS,EH,26/06/2012,Quadron Services Ltd,0040000633,153.36 ,National Collections Group - Property Maintenance Programme,Annual Cyclical Works-Building
145,DCMS,EH,26/06/2012,Quadron Services Ltd,0040000633,593.50 ,National Collections Group - Property Maintenance Programme,Annual Cyclical Works-Building
146,DCMS,EH,26/06/2012,Quadron Services Ltd,0040000633,"1,323.31 ",National Collections Group - Property Maintenance Programme,Annual Cyclical Works-Building
147,DCMS,EH,26/06/2012,Quadron Services Ltd,0040000633,"3,634.56 ",National Collections Group - Property Maintenance Programme,Annual Cyclical Works-Building
148,DCMS,EH,26/06/2012,Quadron Services Ltd,0040000633,"6,661.92 ",National Collections Group - Property Maintenance Programme,Annual Cyclical Works-Building
149,DCMS,EH,26/06/2012,Quadron Services Ltd,0040000633,"17,124.61 ",National Collections Group - Property Maintenance Programme,Annual Cyclical Works-Building
150,DCMS,EH,16/07/2012,Quadron Services Ltd,0040003174,"5,664.10 ",National Collections Group - Property Maintenance Programme,Annual Cyclical Works-Building
151,DCMS,EH,16/07/2012,Quadron Services Ltd,0040003174,"7,543.18 ",National Collections Group - Property Maintenance Programme,Annual Cyclical Works-Building
152,DCMS,EH,16/07/2012,Quadron Services Ltd,0040003174,"12,982.44 ",National Collections Group - Property Maintenance Programme,Annual Cyclical Works-Building
153,DCMS,EH,19/07/2012,J R Event Services LTD,0020048414,"34,836.00 ",National Collections Group - Historic Properties Department,Plant & equipment hire
154,DCMS,EH,03/07/2012,SoftwareOne UK Ltd,0040001674,20.12 ,Resources Group - IMT Department,Software Maintenance
155,DCMS,EH,03/07/2012,SoftwareOne UK Ltd,0040001674,52.04 ,Resources Group - IMT Department,Software Maintenance
156,DCMS,EH,03/07/2012,SoftwareOne UK Ltd,0040001674,52.04 ,Resources Group - IMT Department,Software Maintenance
157,DCMS,EH,03/07/2012,SoftwareOne UK Ltd,0040001674,59.40 ,Resources Group - IMT Department,Software Maintenance
158,DCMS,EH,03/07/2012,SoftwareOne UK Ltd,0040001674,83.46 ,Resources Group - IMT Department,Software Maintenance
159,DCMS,EH,03/07/2012,SoftwareOne UK Ltd,0040001674,543.95 ,Resources Group - IMT Department,Software Maintenance
160,DCMS,EH,03/07/2012,SoftwareOne UK Ltd,0040001674,864.00 ,Resources Group - IMT Department,Software Maintenance
161,DCMS,EH,03/07/2012,SoftwareOne UK Ltd,0040001674,"1,985.29 ",Resources Group - IMT Department,Software Maintenance
162,DCMS,EH,03/07/2012,SoftwareOne UK Ltd,0040001674,"2,719.74 ",Resources Group - IMT Department,Software Maintenance
163,DCMS,EH,03/07/2012,SoftwareOne UK Ltd,0040001674,"3,386.40 ",Resources Group - IMT Department,Software Maintenance
164,DCMS,EH,03/07/2012,SoftwareOne UK Ltd,0040001674,"6,927.91 ",Resources Group - IMT Department,Software Maintenance
165,DCMS,EH,03/07/2012,SoftwareOne UK Ltd,0040001674,"9,153.29 ",Resources Group - IMT Department,Software Maintenance
166,DCMS,EH,23/07/2012,SoftwareOne UK Ltd,0040001675,17.02 ,Resources Group - IMT Department,Software Licences > 10k
167,DCMS,EH,23/07/2012,SoftwareOne UK Ltd,0040001675,887.59 ,Resources Group - IMT Department,Software Licences > 10k
168,DCMS,EH,23/07/2012,SoftwareOne UK Ltd,0040001675,"1,389.24 ",Resources Group - IMT Department,Software Licences > 10k
169,DCMS,EH,23/07/2012,SoftwareOne UK Ltd,0040001675,"1,455.66 ",Resources Group - IMT Department,Software Licences > 10k
170,DCMS,EH,23/07/2012,SoftwareOne UK Ltd,0040001675,"1,640.02 ",Resources Group - IMT Department,Software Licences > 10k
171,DCMS,EH,23/07/2012,SoftwareOne UK Ltd,0040001675,"6,149.09 ",Resources Group - IMT Department,Software Licences > 10k
172,DCMS,EH,23/07/2012,SoftwareOne UK Ltd,0040001675,"7,239.55 ",Resources Group - IMT Department,Software Licences > 10k
173,DCMS,EH,23/07/2012,SoftwareOne UK Ltd,0040001675,"7,618.18 ",Resources Group - IMT Department,Software Licences > 10k
174,DCMS,EH,23/07/2012,SoftwareOne UK Ltd,0040001675,"8,081.60 ",Resources Group - IMT Department,Software Licences > 10k
175,DCMS,EH,23/07/2012,SoftwareOne UK Ltd,0040001675,"8,510.40 ",Resources Group - IMT Department,Software Licences > 10k
176,DCMS,EH,23/07/2012,SoftwareOne UK Ltd,0040001675,"8,976.00 ",Resources Group - IMT Department,Software Licences > 10k
177,DCMS,EH,23/07/2012,SoftwareOne UK Ltd,0040001675,"10,157.57 ",Resources Group - IMT Department,Software Licences > 10k
178,DCMS,EH,23/07/2012,SoftwareOne UK Ltd,0040001675,"12,180.09 ",Resources Group - IMT Department,Software Licences > 10k
179,DCMS,EH,23/07/2012,SoftwareOne UK Ltd,0040001675,"21,633.60 ",Resources Group - IMT Department,Software Licences > 10k
180,DCMS,EH,23/07/2012,SoftwareOne UK Ltd,0040001675,"46,828.80 ",Resources Group - IMT Department,Software Licences > 10k
181,DCMS,EH,23/07/2012,SoftwareOne UK Ltd,0040001675,"107,532.36 ",Resources Group - IMT Department,Software Licences > 10k
182,DCMS,EH,23/07/2012,SoftwareOne UK Ltd,0040001675,"158,436.00 ",Resources Group - IMT Department,Software Licences > 10k
183,DCMS,EH,03/07/2012,SoftwareOne UK Ltd,0040001710,"132,067.44 ",Resources Group - IMT Department,Software Maintenance
184,DCMS,EH,04/07/2012,SoftwareOne UK Ltd,0040001711,"55,968.00 ",Resources Group - IMT Department,Software Maintenance
185,DCMS,EH,16/04/2012,Capita Secure Information Systems Ltd,0020040806,"38,495.74",Resources Group - IMT Department,System developments <50k
186,DCMS,EH,12/04/2012,Capita Secure Information Systems Ltd,0020042988,130.26,Resources Group - IMT Department,Software Licences <10k
187,DCMS,EH,12/04/2012,Capita Secure Information Systems Ltd,0020042988,"6,539.19",Resources Group - IMT Department,WIP Computer Consultancy
188,DCMS,EH,12/04/2012,Capita Secure Information Systems Ltd,0020042988,"29,841.85",Resources Group - IMT Department,WIP Software Support
189,DCMS,EH,41116,Capita Secure Information Systems Ltd,0040004328,268353.6,Resources Group - IMT Department,ITFM
190,DCMS,EH,41116,Capita Secure Information Systems Ltd,0040004329,268353.6,Resources Group - IMT Department,ITFM
191,DCMS,EH,41116,Capita Secure Information Systems Ltd,0040004330,268353.6,Resources Group - IMT Department,ITFM
192,DCMS,EH,19/04/2012,Front Ideas Ltd,0020042696,"28,800.00",National Collections Group - Marketing Department,Media
193,DCMS,EH,18/07/2012,Wyndeham Web Ltd,0040001975,"3,072.89 ",National Collections Group - Marketing Department,Marketing Publishing
194,DCMS,EH,18/07/2012,Wyndeham Web Ltd,0040001975,"22,709.60 ",National Collections Group - Marketing Department,Marketing Publishing
195,DCMS,EH,14/06/2012,Jones Lang LaSalle Limited,0020047672,"8,827.80 ",Resources Group - Operational Estates,Building Service Charges
196,DCMS,EH,14/06/2012,Jones Lang LaSalle Limited,0020047672,"22,747.50 ",Resources Group - Operational Estates,Rent - Operating Leases
197,DCMS,EH,20/06/2012,CB Richard Ellis Ltd,0040000023,"84,529.25 ",Resources Group - Operational Estates,Rent - Operating Leases
198,DCMS,EH,20/06/2012,CB Richard Ellis Ltd,0040000024,840.50 ,Resources Group - Operational Estates,Rent - Operating Leases
199,DCMS,EH,20/06/2012,CB Richard Ellis Ltd,0040000024,"262,826.00 ",Resources Group - Operational Estates,Rent - Operating Leases
200,DCMS,EH,17/04/2012,IFTech Ltd,0020043250,"81,027.91",National Collections Group - Property Investment Programme,WIP Operational Building Works
201,DCMS,EH,24/05/2012,IFTech Ltd,0020045919,"38,361.60 ",National Collections Group - Property Investment Programme,WIP Operational Building Works
202,DCMS,EH,18/06/2012,IFTech Ltd,0020047860,"128,700.00 ",National Collections Group - Property Investment Programme,WIP Operational Building Works
203,DCMS,EH,10/05/2012,Skanska Rashleigh Weatherfoil Ltd,0020044962,"176,096.40 ",National Collections Group - Curatorial Department,WIP Operational Building Works
204,DCMS,EH,14/06/2012,Skanska Rashleigh Weatherfoil Ltd,0020047528,"46,552.80 ",National Collections Group - Curatorial Department,WIP Operational Building Works
205,DCMS,EH,27/07/2012,Skanska Rashleigh Weatherfoil Ltd,0040003310,"38,647.20 ",National Collections Group - Curatorial Department,WIP Operational Building Works
206,DCMS,EH,28/08/2012,Skanska Rashleigh Weatherfoil Ltd,0040006802,"60,820.80 ",National Collections Group - Curatorial Department,WIP Operational Building Works
207,DCMS,EH,14/06/2012,Thomas Vale Construction Plc,0020047490,"33,835.01 ",Heritage Protection & Planning Group - National Planning & Conservation Departmentt,Commissioned architects
208,DCMS,EH,12/04/2012,Capita Secure Information Systems Ltd,0000001905,"-29,841.85",Resources Group - IMT Department,WIP Software Support
209,DCMS,EH,12/04/2012,Capita Secure Information Systems Ltd,0000001905,"-6,539.19",Resources Group - IMT Department,WIP Computer Consultancy
210,DCMS,EH,12/04/2012,Capita Secure Information Systems Ltd,0000001905,-130.26,Resources Group - IMT Department,Software Licences <10k
211,DCMS,EH,11/04/2012,Capita Secure Information Systems Ltd,0020042803,104.22,Resources Group - IMT Department,WIP Software Support
212,DCMS,EH,11/04/2012,Capita Secure Information Systems Ltd,0020042803,156.31,Resources Group - IMT Department,Software Licences <10k
213,DCMS,EH,11/04/2012,Capita Secure Information Systems Ltd,0020042803,521.05,Resources Group - IMT Department,WIP Software Support
214,DCMS,EH,11/04/2012,Capita Secure Information Systems Ltd,0020042803,769.77,Resources Group - IMT Department,WIP Computer Consultancy
215,DCMS,EH,11/04/2012,Capita Secure Information Systems Ltd,0020042803,"1,386.00",Resources Group - IMT Department,WIP Computer Consultancy
216,DCMS,EH,11/04/2012,Capita Secure Information Systems Ltd,0020042803,"1,650.00",Resources Group - IMT Department,WIP Computer Consultancy
217,DCMS,EH,11/04/2012,Capita Secure Information Systems Ltd,0020042803,"2,059.90",Resources Group - IMT Department,WIP Software Support
218,DCMS,EH,11/04/2012,Capita Secure Information Systems Ltd,0020042803,"3,112.43",Resources Group - IMT Department,WIP Software Support
219,DCMS,EH,11/04/2012,Capita Secure Information Systems Ltd,0020042803,"4,041.26",Resources Group - IMT Department,WIP Computer Consultancy
220,DCMS,EH,11/04/2012,Capita Secure Information Systems Ltd,0020042803,"30,012.62",Resources Group - IMT Department,WIP Software Support
221,DCMS,EH,24/07/2012,H G Matthews,0040003333,"28,887.30 ",Heritage Protection & Planning Group - National Planning & Conservation Departmentt,Works for Heritage Buildings
222,DCMS,EH,18/06/2012,Harlow Property Management Ltd,0020047504,"54,750.00 ",Resources Group - Operational Estates,Rent - Operating Leases
223,DCMS,EH,05/04/2012,Interserve Construction Ltd,0020042205,"52,962.00",National Collections Group - Property Investment Programme,WIP Operational Building Works
224,DCMS,EH,30/05/2012,Interserve Construction Ltd,0020045395,"39,343.20 ",National Collections Group - Property Investment Programme,WIP Operational Building Works
225,DCMS,EH,27/06/2012,Interserve Construction Ltd,0020047994,"373,294.80 ",National Collections Group - Property Investment Programme,WIP Operational Building Works
226,DCMS,EH,25/07/2012,Interserve Construction Ltd,0040003175,"108,252.00 ",National Collections Group - Property Investment Programme,WIP Operational Building Works
227,DCMS,EH,11/04/2012,Specialist Computer Centres plc,0020042368,"1,243.38",Resources Group - IMT Department,Computer Equipment <10k
228,DCMS,EH,11/04/2012,Specialist Computer Centres plc,0020042368,"3,858.90",Resources Group - IMT Department,Computer Equipment <10k
229,DCMS,EH,11/04/2012,Specialist Computer Centres plc,0020042368,"6,884.82",Resources Group - IMT Department,Computer Equipment <10k
230,DCMS,EH,11/04/2012,Specialist Computer Centres plc,0020042368,"6,928.25",Resources Group - IMT Department,Computer Equipment <10k
231,DCMS,EH,11/04/2012,Specialist Computer Centres plc,0020042368,"7,350.90",Resources Group - IMT Department,Computer Equipment <10k
232,DCMS,EH,11/04/2012,Specialist Computer Centres plc,0020042368,"11,226.00",Resources Group - IMT Department,Computer Equipment <10k
233,DCMS,EH,11/04/2012,Specialist Computer Centres plc,0020042368,"20,110.32",Resources Group - IMT Department,Computer Equipment <10k
234,DCMS,EH,18/04/2012,Specialist Computer Centres plc,0020042742,"41,488.56",Resources Group - IMT Department,Computer Equipment <10k
235,DCMS,EH,03/05/2012,Elite Systems (GB) Ltd,0020044090,"36,205.20 ",Resources Group - Human Resources Department,Operational Herit Bldgs <50k
236,DCMS,EH,17/04/2012,Messenger Construction Ltd,0020043213,"91,956.00",Heritage Protection & Planning Group - National Planning & Conservation Departmentt,Works for Heritage Buildings
237,DCMS,EH,10/05/2012,Messenger Construction Ltd,0020044966,"65,268.00 ",Heritage Protection & Planning Group - National Planning & Conservation Departmentt,Works for Heritage Buildings
238,DCMS,EH,03/07/2012,Messenger Construction Ltd,0040001247,"92,892.00 ",Heritage Protection & Planning Group - National Planning & Conservation Departmentt,Works for Heritage Buildings
239,DCMS,EH,18/07/2012,Messenger Construction Ltd,0040003259,"125,388.00 ",Heritage Protection & Planning Group - National Planning & Conservation Departmentt,Works for Heritage Buildings
240,DCMS,EH,23/08/2012,Messenger Construction Ltd,0040007341,"178,272.00 ",Heritage Protection & Planning Group - National Planning & Conservation Departmentt,Works for Heritage Buildings
241,DCMS,EH,04/07/2012,Vinci Construction UK Ltd,0040001955,"13,240.80 ",National Collections Group - Property Investment Programme,WIP Professional Works Advice
242,DCMS,EH,04/07/2012,Vinci Construction UK Ltd,0040001955,"34,807.20 ",National Collections Group - Property Investment Programme,Works for Heritage Buildings
243,DCMS,EH,04/07/2012,Vinci Construction UK Ltd,0040001955,"48,684.00 ",National Collections Group - Property Investment Programme,Works for Heritage Buildings
244,DCMS,EH,04/07/2012,Vinci Construction UK Ltd,0040001955,"62,515.20 ",National Collections Group - Property Investment Programme,Works for Heritage Buildings
245,DCMS,EH,13/08/2012,Vinci Construction UK Ltd,0040005744,"1,657.20 ",National Collections Group - Property Investment Programme,Works for Heritage Buildings
246,DCMS,EH,13/08/2012,Vinci Construction UK Ltd,0040005744,"5,328.00 ",National Collections Group - Property Investment Programme,WIP Operational Building Works
247,DCMS,EH,13/08/2012,Vinci Construction UK Ltd,0040005744,"11,031.60 ",National Collections Group - Property Investment Programme,Works for Heritage Buildings
248,DCMS,EH,13/08/2012,Vinci Construction UK Ltd,0040005744,"35,602.80 ",National Collections Group - Property Investment Programme,Works for Heritage Buildings
249,DCMS,EH,13/08/2012,Vinci Construction UK Ltd,0040005744,"45,632.40 ",National Collections Group - Property Investment Programme,WIP Professional Works Advice
250,DCMS,EH,13/08/2012,Vinci Construction UK Ltd,0040005744,"81,278.40 ",National Collections Group - Property Investment Programme,Works for Heritage Buildings
251,DCMS,EH,13/08/2012,Vinci Construction UK Ltd,0040005744,"140,469.60 ",National Collections Group - Property Investment Programme,WIP Operational Building Works
252,DCMS,EH,13/08/2012,Vinci Construction UK Ltd,0040005744,"145,458.00 ",National Collections Group - Property Investment Programme,WIP Operational Building Works
253,DCMS,EH,06/08/2012,MediaCom North Ltd,0040004203,"29,168.74 ",National Collections Group - Marketing Department,Media
254,DCMS,EH,06/08/2012,MediaCom North Ltd,0040004204,"25,975.95 ",National Collections Group - Marketing Department,Media
255,DCMS,EH,30/04/2012,Wyndeham (Roche) Ltd,0020041326,"5,713.27",National Collections Group - Marketing Department,Promotional Material
256,DCMS,EH,30/04/2012,Wyndeham (Roche) Ltd,0020041326,"197,804.00",National Collections Group - Marketing Department,Promotional Material
257,DCMS,EH,06/08/2012,TNS UK Ltd,0040003982,"32,100.00 ",National Collections Group - Marketing Department,Promotional Material
258,DCMS,EH,41120,Godson & Coles Limited,0040004439,234000,National Collections Group - Curatorial Department,Artefacts & Archives > 10k
259,DCMS,EH,28/05/2012,BRITISH GAS,0020046500,"61,709.00 ",Resources Group - Corporate,Gas & Oil
260,DCMS,EH,04/05/2012,Wolverhampton City Council,0090513248,"25,456.00 ",Heritage Protection & Planning Group - National Planning & Conservation Departmentt,GRANTS PAYABLE - AREA
261,DCMS,EH,41113,Stoke - On - Trent  City Council,0090513337,57066,Heritage Protection & Planning Group - National Planning & Conservation Departmentt,GRANTS PAYABLE - AREA
262,DCMS,EH,21/06/2012,The Archbishop's Council of the,0090513298,"70,000.00 ",Heritage Protection & Planning Group - National Planning & Conservation Departmentt,GRANTS PAYABLE - OTHER GRANTS
263,DCMS,EH,04/05/2012,Richmondshire District Council,0090513246,"1,888.00 ",Heritage Protection & Planning Group - National Planning & Conservation Departmentt,GRANTS PAYABLE - AREA
264,DCMS,EH,04/05/2012,Richmondshire District Council,0090513246,"10,329.00 ",Heritage Protection & Planning Group - National Planning & Conservation Departmentt,GRANTS PAYABLE - AREA
265,DCMS,EH,04/05/2012,Richmondshire District Council,0090513246,"15,719.00 ",Heritage Protection & Planning Group - National Planning & Conservation Departmentt,GRANTS PAYABLE - AREA
266,DCMS,EH,06/08/2012,Southwark Borough Council,0090513359,"30,105.00 ",Heritage Protection & Planning Group - National Planning & Conservation Departmentt,GRANTS PAYABLE - AREA
267,DCMS,EH,06/08/2012,Southwark Borough Council,0090513360,"47,533.00 ",Heritage Protection & Planning Group - National Planning & Conservation Departmentt,GRANTS PAYABLE - AREA
268,DCMS,EH,41121,Institute Of Field Archaeologists,0081002111,25000,Heritage Protection & Planning Group - Heritage Protection Department,Historic Environ Prog Grants
269,DCMS,EH,17/04/2012,City Of Stoke On Trent,0081002052,"50,000.00",Heritage Protection & Planning Group - Heritage Protection Department,Historic Environ Prog Grants
270,DCMS,EH,29/06/2012,The Friends of Friendless Churches,0082000346,"74,313.00 ",Heritage Protection & Planning Group - National Planning & Conservation Departmentt,GRANTS PAYABLE - HISTORIC BUILDINGS
271,DCMS,EH,08/08/2012,The National Trust Worksop,0082000461,"40,000.00 ",Heritage Protection & Planning Group - National Planning & Conservation Departmentt,GRANTS PAYABLE - HISTORIC BUILDINGS
272,DCMS,EH,24/08/2012,Alveley PCC,0082000524,"27,000.00 ",Heritage Protection & Planning Group - National Planning & Conservation Departmentt,GRANTS PAYABLE - PLACES OF WORSHIP
273,DCMS,EH,10/08/2012,PCC St Mary the Virgin Newington,0082000478,"32,500.00 ",Heritage Protection & Planning Group - National Planning & Conservation Departmentt,GRANTS PAYABLE - PLACES OF WORSHIP
274,DCMS,EH,10/08/2012,St Mary's Church Sprotborough PCC,0082000476,"44,500.00 ",Heritage Protection & Planning Group - National Planning & Conservation Departmentt,GRANTS PAYABLE - PLACES OF WORSHIP
275,DCMS,EH,16/04/2012,St Lawrence Church Thornton PCC,0082000039,"50,000.00",Heritage Protection & Planning Group - National Planning & Conservation Departmentt,GRANTS PAYABLE - PLACES OF WORSHIP
276,DCMS,EH,22/06/2012,St Lawrence Church Thornton PCC,0082000330,"38,000.00 ",Heritage Protection & Planning Group - National Planning & Conservation Departmentt,GRANTS PAYABLE - PLACES OF WORSHIP
277,DCMS,EH,18/05/2012,All Saints Stand PCC,0082000201,"83,000.00 ",Heritage Protection & Planning Group - National Planning & Conservation Departmentt,GRANTS PAYABLE - PLACES OF WORSHIP
278,DCMS,EH,12/06/2012,Weston St Mary PCC,0082000292,"60,500.00 ",Heritage Protection & Planning Group - National Planning & Conservation Departmentt,GRANTS PAYABLE - PLACES OF WORSHIP
279,DCMS,EH,41093,St Mary Radcliffe PCC,0082000365,70000,Heritage Protection & Planning Group - National Planning & Conservation Departmentt,GRANTS PAYABLE - PLACES OF WORSHIP
280,DCMS,EH,41117,St Wilfrid PCC Halton,0082000434,236500,Heritage Protection & Planning Group - National Planning & Conservation Departmentt,GRANTS PAYABLE - PLACES OF WORSHIP
281,DCMS,EH,24/08/2012,St Wilfrid PCC Halton,0082000537,"126,000.00 ",Heritage Protection & Planning Group - National Planning & Conservation Departmentt,GRANTS PAYABLE - PLACES OF WORSHIP
282,DCMS,EH,41117,Sowerby PCC,0082000438,54500,Heritage Protection & Planning Group - National Planning & Conservation Departmentt,GRANTS PAYABLE - PLACES OF WORSHIP
283,DCMS,EH,41093,St Nicholas Church Halewood,0082000367,32500,Heritage Protection & Planning Group - National Planning & Conservation Departmentt,GRANTS PAYABLE - PLACES OF WORSHIP
284,DCMS,EH,17/08/2012,Ickworth Church Conservation Trust,0082000500,"57,600.00 ",Heritage Protection & Planning Group - National Planning & Conservation Departmentt,GRANTS PAYABLE - HISTORIC BUILDINGS
285,DCMS,EH,41100,Oxborough PCC,0082000381,49633,Heritage Protection & Planning Group - National Planning & Conservation Departmentt,GRANTS PAYABLE - PLACES OF WORSHIP
286,DCMS,EH,13/04/2012,Roehampton PCC,0000000001,"26,500.00",Heritage Protection & Planning Group - National Planning & Conservation Departmentt,GRANTS PAYABLE - PLACES OF WORSHIP
287,DCMS,EH,16/04/2012,All Saints Beckingham PCC,0082000026,"28,359.00",Heritage Protection & Planning Group - National Planning & Conservation Departmentt,GRANTS PAYABLE - PLACES OF WORSHIP
288,DCMS,EH,01/06/2012,Order of Friars Minor Conventual,0082000255,"89,500.00 ",Heritage Protection & Planning Group - National Planning & Conservation Departmentt,GRANTS PAYABLE - PLACES OF WORSHIP
289,DCMS,EH,41117,PCC of Elland St Marys Church,0082000427,26500,Heritage Protection & Planning Group - National Planning & Conservation Departmentt,GRANTS PAYABLE - PLACES OF WORSHIP
290,DCMS,EH,41117,PCC of Elland St Marys Church,0082000428,29601,Heritage Protection & Planning Group - National Planning & Conservation Departmentt,GRANTS PAYABLE - PLACES OF WORSHIP
291,DCMS,EH,22/06/2012,Arkengarthdale St Marys Church,0082000332,"39,000.00 ",Heritage Protection & Planning Group - National Planning & Conservation Departmentt,GRANTS PAYABLE - PLACES OF WORSHIP
292,DCMS,EH,21/08/2012,Arkengarthdale St Marys Church,0082000515,"27,017.00 ",Heritage Protection & Planning Group - National Planning & Conservation Departmentt,GRANTS PAYABLE - PLACES OF WORSHIP
293,DCMS,EH,17/04/2012,Local Management Comm PCM Reading,0082000058,"53,672.00",Heritage Protection & Planning Group - National Planning & Conservation Departmentt,GRANTS PAYABLE - PLACES OF WORSHIP
294,DCMS,EH,08/08/2012,Local Management Comm PCM Reading,0082000460,"38,500.00 ",Heritage Protection & Planning Group - National Planning & Conservation Departmentt,GRANTS PAYABLE - PLACES OF WORSHIP
295,DCMS,EH,10/04/2012,Saint John's PCC Failsworth,0082000001,"47,700.00",Heritage Protection & Planning Group - National Planning & Conservation Departmentt,GRANTS PAYABLE - PLACES OF WORSHIP
296,DCMS,EH,18/05/2012,"PCC of SS Peter & Paul, Malmesbury Abbey",0082000186,"32,358.00 ",Heritage Protection & Planning Group - National Planning & Conservation Departmentt,GRANTS PAYABLE - HISTORIC BUILDINGS
297,DCMS,EH,29/05/2012,SS Michael Bartholomew Great Lever,0082000244,"31,498.00 ",Heritage Protection & Planning Group - National Planning & Conservation Departmentt,GRANTS PAYABLE - PLACES OF WORSHIP
298,DCMS,EH,25/04/2012,Derby City Council,0090513226,"47,117.00",Heritage Protection & Planning Group - National Planning & Conservation Departmentt,GRANTS PAYABLE - AREA
299,DCMS,EH,25/04/2012,Derby City Council,0090513227,"64,260.00",Heritage Protection & Planning Group - National Planning & Conservation Departmentt,GRANTS PAYABLE - AREA
300,DCMS,EH,24/08/2012,The Finchingfield Guildhall Trust,0082000519,"60,378.00 ",Heritage Protection & Planning Group - National Planning & Conservation Departmentt,GRANTS PAYABLE - HISTORIC BUILDINGS
301,DCMS,EH,29/06/2012,The Vivat Trust Ltd,0082000345,"120,000.00 ",Heritage Protection & Planning Group - National Planning & Conservation Departmentt,GRANTS PAYABLE - HISTORIC BUILDINGS
302,DCMS,EH,41093,The Vivat Trust Ltd,0082000363,60000,Heritage Protection & Planning Group - National Planning & Conservation Departmentt,GRANTS PAYABLE - HISTORIC BUILDINGS
303,DCMS,EH,25/05/2012,St Helenas PCC,0082000230,"25,250.00 ",Heritage Protection & Planning Group - National Planning & Conservation Departmentt,GRANTS PAYABLE - PLACES OF WORSHIP
304,DCMS,EH,16/04/2012,PCC of St Cuthberts Fishlake,0082000018,"36,895.00",Heritage Protection & Planning Group - National Planning & Conservation Departmentt,GRANTS PAYABLE - PLACES OF WORSHIP
305,DCMS,EH,12/06/2012,Sussex Archaeological Society,0082000289,"34,500.00 ",Heritage Protection & Planning Group - National Planning & Conservation Departmentt,GRANTS PAYABLE - HISTORIC BUILDINGS
306,DCMS,EH,21/08/2012,PCC of Lower Beeding,0082000516,"65,500.00 ",Heritage Protection & Planning Group - National Planning & Conservation Departmentt,GRANTS PAYABLE - PLACES OF WORSHIP
307,DCMS,EH,25/05/2012,Alderley Edge Methodist Church,0082000227,"33,821.00 ",Heritage Protection & Planning Group - National Planning & Conservation Departmentt,GRANTS PAYABLE - PLACES OF WORSHIP
308,DCMS,EH,21/08/2012,St Paul's Parochial Church Council,0082000514,"69,500.00 ",Heritage Protection & Planning Group - National Planning & Conservation Departmentt,GRANTS PAYABLE - PLACES OF WORSHIP
309,DCMS,EH,07/06/2012,Poltimore House Trust,0082000275,"35,085.00 ",Heritage Protection & Planning Group - National Planning & Conservation Departmentt,GRANTS PAYABLE - HISTORIC BUILDINGS
310,DCMS,EH,01/06/2012,St Peter's Parochial Church Council,0082000263,"43,500.00 ",Heritage Protection & Planning Group - National Planning & Conservation Departmentt,GRANTS PAYABLE - PLACES OF WORSHIP
311,DCMS,EH,08/08/2012,Norfolk Churches Trust,0082000467,"27,395.00 ",Heritage Protection & Planning Group - National Planning & Conservation Departmentt,GRANTS PAYABLE - HISTORIC BUILDINGS
312,DCMS,EH,41110,The Wolfeton Riding House Trust,0082000416,36000,Heritage Protection & Planning Group - National Planning & Conservation Departmentt,GRANTS PAYABLE - HISTORIC BUILDINGS
313,DCMS,EH,29/06/2012,PCC of Yardley,0082000352,"30,500.00 ",Heritage Protection & Planning Group - National Planning & Conservation Departmentt,GRANTS PAYABLE - PLACES OF WORSHIP
314,DCMS,EH,08/08/2012,Haworth PCC,0082000456,"49,000.00 ",Heritage Protection & Planning Group - National Planning & Conservation Departmentt,GRANTS PAYABLE - PLACES OF WORSHIP
315,DCMS,EH,17/08/2012,Croxton PCC,0082000505,"50,500.00 ",Heritage Protection & Planning Group - National Planning & Conservation Departmentt,GRANTS PAYABLE - PLACES OF WORSHIP
316,DCMS,EH,29/06/2012,St Peter's PCC,0082000351,"40,050.00 ",Heritage Protection & Planning Group - National Planning & Conservation Departmentt,GRANTS PAYABLE - PLACES OF WORSHIP
317,DCMS,EH,08/08/2012,PCC of Church of the Epiphany,0082000457,"84,500.00 ",Heritage Protection & Planning Group - National Planning & Conservation Departmentt,GRANTS PAYABLE - PLACES OF WORSHIP
318,DCMS,EH,16/04/2012,PCC of St John the Evangelist,0082000022,"119,180.00",Heritage Protection & Planning Group - National Planning & Conservation Departmentt,GRANTS PAYABLE - PLACES OF WORSHIP
319,DCMS,EH,12/06/2012,"St Peters Church, Great Totham",0082000295,"51,300.00 ",Heritage Protection & Planning Group - National Planning & Conservation Departmentt,GRANTS PAYABLE - PLACES OF WORSHIP
320,DCMS,EH,08/08/2012,St Margarets PCC & Friends,0082000454,"64,800.00 ",Heritage Protection & Planning Group - National Planning & Conservation Departmentt,GRANTS PAYABLE - PLACES OF WORSHIP
321,DCMS,EH,29/06/2012,"St Martins, Owsten Ferry PCC",0082000353,"47,000.00 ",Heritage Protection & Planning Group - National Planning & Conservation Departmentt,GRANTS PAYABLE - PLACES OF WORSHIP
322,DCMS,EH,26/06/2012,PCC St Ann Manchester,0082000340,"68,000.00 ",Heritage Protection & Planning Group - National Planning & Conservation Departmentt,GRANTS PAYABLE - PLACES OF WORSHIP
323,DCMS,EH,04/05/2012,Huddersfield Parish Council,0082000143,"77,500.00 ",Heritage Protection & Planning Group - National Planning & Conservation Departmentt,GRANTS PAYABLE - PLACES OF WORSHIP
324,DCMS,EH,24/08/2012,Huddersfield Parish Council,0082000533,"69,750.00 ",Heritage Protection & Planning Group - National Planning & Conservation Departmentt,GRANTS PAYABLE - PLACES OF WORSHIP
325,DCMS,EH,22/06/2012,Holme Hale PCC,0082000327,"25,500.00 ",Heritage Protection & Planning Group - National Planning & Conservation Departmentt,GRANTS PAYABLE - PLACES OF WORSHIP
326,DCMS,EH,20/04/2012,Brighton St Peter,0082000066,"78,300.00",Heritage Protection & Planning Group - National Planning & Conservation Departmentt,GRANTS PAYABLE - PLACES OF WORSHIP
327,DCMS,EH,30/04/2012,St Edith's PCC,0082000109,"45,000.00",Heritage Protection & Planning Group - National Planning & Conservation Departmentt,GRANTS PAYABLE - PLACES OF WORSHIP
328,DCMS,EH,10/08/2012,St Edith's PCC,0082000473,"34,768.00 ",Heritage Protection & Planning Group - National Planning & Conservation Departmentt,GRANTS PAYABLE - PLACES OF WORSHIP
329,DCMS,EH,24/08/2012,Threxton PCC,0082000521,"41,500.00 ",Heritage Protection & Planning Group - National Planning & Conservation Departmentt,GRANTS PAYABLE - PLACES OF WORSHIP
330,DCMS,EH,10/05/2012,"Wootton, Glympton & Kiddington PCC",0082000155,"62,500.00 ",Heritage Protection & Planning Group - National Planning & Conservation Departmentt,GRANTS PAYABLE - PLACES OF WORSHIP
331,DCMS,EH,10/08/2012,"Wootton, Glympton & Kiddington PCC",0082000471,"52,887.00 ",Heritage Protection & Planning Group - National Planning & Conservation Departmentt,GRANTS PAYABLE - PLACES OF WORSHIP
332,DCMS,EH,10/05/2012,The PCC of St Mary's Great Chart,0082000158,"27,000.00 ",Heritage Protection & Planning Group - National Planning & Conservation Departmentt,GRANTS PAYABLE - PLACES OF WORSHIP
333,DCMS,EH,17/08/2012,St Bee's PCC,0082000509,"28,352.00 ",Heritage Protection & Planning Group - National Planning & Conservation Departmentt,GRANTS PAYABLE - HISTORIC BUILDINGS
334,DCMS,EH,01/05/2012,PCC of North Stoke,0082000127,"30,500.00 ",Heritage Protection & Planning Group - National Planning & Conservation Departmentt,GRANTS PAYABLE - PLACES OF WORSHIP
335,DCMS,EH,08/05/2012,PCC of St Thomas the Apostle,0082000146,"43,493.00 ",Heritage Protection & Planning Group - National Planning & Conservation Departmentt,GRANTS PAYABLE - PLACES OF WORSHIP
336,DCMS,EH,10/08/2012,Borlase Smart John Wells Trust Ltd,0082000472,"50,000.00 ",Heritage Protection & Planning Group - National Planning & Conservation Departmentt,GRANTS PAYABLE - HISTORIC BUILDINGS
337,DCMS,EH,29/06/2012,"St Michael's, Handsworth PCC",0082000355,"50,500.00 ",Heritage Protection & Planning Group - National Planning & Conservation Departmentt,GRANTS PAYABLE - PLACES OF WORSHIP
338,DCMS,EH,18/06/2012,PCC of St George with Anne & ST Mark,0082000303,"33,500.00 ",Heritage Protection & Planning Group - National Planning & Conservation Departmentt,GRANTS PAYABLE - PLACES OF WORSHIP
339,DCMS,EH,41110,PCC of Christ Church West Didsbury,0082000412,72500,Heritage Protection & Planning Group - National Planning & Conservation Departmentt,GRANTS PAYABLE - PLACES OF WORSHIP
340,DCMS,EH,16/04/2012,Christ Church PCC,0082000029,"40,950.00",Heritage Protection & Planning Group - National Planning & Conservation Departmentt,GRANTS PAYABLE - PLACES OF WORSHIP
341,DCMS,EH,41110,St Pauls PCC,0082000413,124000,Heritage Protection & Planning Group - National Planning & Conservation Departmentt,GRANTS PAYABLE - PLACES OF WORSHIP
342,DCMS,EH,18/06/2012,PCC of St Michael & All Angels,0082000304,"40,000.00 ",Heritage Protection & Planning Group - National Planning & Conservation Departmentt,GRANTS PAYABLE - PLACES OF WORSHIP
343,DCMS,EH,10/08/2012,UK Historic Building Preservation Trust,0082000470,"40,000.00 ",Heritage Protection & Planning Group - National Planning & Conservation Departmentt,GRANTS PAYABLE - HISTORIC BUILDINGS
344,DCMS,EH,41121,Rodmarton Manor,0082000450,58711,Heritage Protection & Planning Group - National Planning & Conservation Departmentt,GRANTS PAYABLE - HISTORIC BUILDINGS
345,DCMS,EH,01/06/2012,The Chapter of Worcester Cathedral,0082000252,"25,600.00 ",Heritage Protection & Planning Group - National Planning & Conservation Departmentt,GRANTS PAYABLE - HISTORIC BUILDINGS
346,DCMS,EH,01/06/2012,Blythburgh Priory,0082000270,"25,740.00 ",Heritage Protection & Planning Group - National Planning & Conservation Departmentt,GRANTS PAYABLE - HISTORIC BUILDINGS
347,DCMS,EH,08/08/2012,Stockbury Parochial Church Council,0082000464,"76,500.00 ",Heritage Protection & Planning Group - National Planning & Conservation Departmentt,GRANTS PAYABLE - PLACES OF WORSHIP
348,DCMS,EH,24/08/2012,Jacobstow PCC,0082000525,"29,000.00 ",Heritage Protection & Planning Group - National Planning & Conservation Departmentt,GRANTS PAYABLE - PLACES OF WORSHIP
349,DCMS,EH,30/04/2012,St Giles PCC,0082000104,"48,500.00",Heritage Protection & Planning Group - National Planning & Conservation Departmentt,GRANTS PAYABLE - PLACES OF WORSHIP
350,DCMS,EH,16/04/2012,Haslingfield PCC,0082000032,"33,000.00",Heritage Protection & Planning Group - National Planning & Conservation Departmentt,GRANTS PAYABLE - PLACES OF WORSHIP
351,DCMS,EH,41117,Haslingfield PCC,0082000429,29700,Heritage Protection & Planning Group - National Planning & Conservation Departmentt,GRANTS PAYABLE - PLACES OF WORSHIP
352,DCMS,EH,10/05/2012,PCC of Norbury,0082000156,"62,500.00 ",Heritage Protection & Planning Group - National Planning & Conservation Departmentt,GRANTS PAYABLE - PLACES OF WORSHIP
353,DCMS,EH,24/08/2012,Great Ellingham PCC,0082000526,"48,000.00 ",Heritage Protection & Planning Group - National Planning & Conservation Departmentt,GRANTS PAYABLE - PLACES OF WORSHIP
354,DCMS,EH,14/08/2012,Appleby Magna Church Council,0082000489,"35,500.00 ",Heritage Protection & Planning Group - National Planning & Conservation Departmentt,GRANTS PAYABLE - PLACES OF WORSHIP
355,DCMS,EH,30/04/2012,St Andrew's PCC,0082000105,"59,000.00",Heritage Protection & Planning Group - National Planning & Conservation Departmentt,GRANTS PAYABLE - PLACES OF WORSHIP
356,DCMS,EH,41117,St Andrew's PCC,0082000430,53100,Heritage Protection & Planning Group - National Planning & Conservation Departmentt,GRANTS PAYABLE - PLACES OF WORSHIP
357,DCMS,EH,41102,Cowley Church PCC,0082000392,26500,Heritage Protection & Planning Group - National Planning & Conservation Departmentt,GRANTS PAYABLE - PLACES OF WORSHIP
358,DCMS,EH,01/05/2012,PCC of Hawling,0082000129,"30,000.00 ",Heritage Protection & Planning Group - National Planning & Conservation Departmentt,GRANTS PAYABLE - PLACES OF WORSHIP
359,DCMS,EH,10/04/2012,St Peter's PCC,0082000002,"65,500.00",Heritage Protection & Planning Group - National Planning & Conservation Departmentt,GRANTS PAYABLE - PLACES OF WORSHIP
360,DCMS,EH,07/06/2012,PCC of Aller,0082000278,"34,000.00 ",Heritage Protection & Planning Group - National Planning & Conservation Departmentt,GRANTS PAYABLE - PLACES OF WORSHIP
361,DCMS,EH,30/04/2012,St Andrews Church Metton PCC,0082000107,"62,500.00",Heritage Protection & Planning Group - National Planning & Conservation Departmentt,GRANTS PAYABLE - PLACES OF WORSHIP
362,DCMS,EH,24/08/2012,St Andrews Church Metton PCC,0082000528,"29,500.00 ",Heritage Protection & Planning Group - National Planning & Conservation Departmentt,GRANTS PAYABLE - PLACES OF WORSHIP
363,DCMS,EH,24/08/2012,St Andrews Church Metton PCC,0082000529,"26,750.00 ",Heritage Protection & Planning Group - National Planning & Conservation Departmentt,GRANTS PAYABLE - PLACES OF WORSHIP
364,DCMS,EH,41117,PCC of the Parish of Wanstead,0082000431,69000,Heritage Protection & Planning Group - National Planning & Conservation Departmentt,GRANTS PAYABLE - PLACES OF WORSHIP
365,DCMS,EH,16/04/2012,St Michael & All Angels Wartnaby PCC,0082000034,"34,000.00",Heritage Protection & Planning Group - National Planning & Conservation Departmentt,GRANTS PAYABLE - PLACES OF WORSHIP
366,DCMS,EH,21/08/2012,St Michael & All Angels Wartnaby PCC,0082000513,"25,414.00 ",Heritage Protection & Planning Group - National Planning & Conservation Departmentt,GRANTS PAYABLE - PLACES OF WORSHIP
367,DCMS,EH,18/05/2012,Long & Little Wittenham PCC,0082000199,"55,000.00 ",Heritage Protection & Planning Group - National Planning & Conservation Departmentt,GRANTS PAYABLE - PLACES OF WORSHIP
368,DCMS,EH,41102,PCC of Upwell St Peter,0082000394,75500,Heritage Protection & Planning Group - National Planning & Conservation Departmentt,GRANTS PAYABLE - PLACES OF WORSHIP
369,DCMS,EH,07/06/2012,Great Cressingham Church,0082000280,"31,500.00 ",Heritage Protection & Planning Group - National Planning & Conservation Departmentt,GRANTS PAYABLE - PLACES OF WORSHIP
370,DCMS,EH,24/08/2012,St Pauls PCC,0082000530,"29,000.00 ",Heritage Protection & Planning Group - National Planning & Conservation Departmentt,GRANTS PAYABLE - PLACES OF WORSHIP
371,DCMS,EH,26/06/2012,Thorney Abbey PCC,0082000339,"73,000.00 ",Heritage Protection & Planning Group - National Planning & Conservation Departmentt,GRANTS PAYABLE - PLACES OF WORSHIP
372,DCMS,EH,41096,St Andrew's PCC,0082000375,44000,Heritage Protection & Planning Group - National Planning & Conservation Departmentt,GRANTS PAYABLE - PLACES OF WORSHIP
373,DCMS,EH,22/05/2012,St Marys Hampstead Norreys Building Fund,0082000221,"36,500.00 ",Heritage Protection & Planning Group - National Planning & Conservation Departmentt,GRANTS PAYABLE - PLACES OF WORSHIP
374,DCMS,EH,41096,St Marys Hampstead Norreys Building Fund,0082000374,29200,Heritage Protection & Planning Group - National Planning & Conservation Departmentt,GRANTS PAYABLE - PLACES OF WORSHIP
375,DCMS,EH,10/05/2012,St Marys Church PCC,0082000159,"26,500.00 ",Heritage Protection & Planning Group - National Planning & Conservation Departmentt,GRANTS PAYABLE - PLACES OF WORSHIP
376,DCMS,EH,16/04/2012,The Old Meeting House Unitarian Church,0082000037,"61,000.00",Heritage Protection & Planning Group - National Planning & Conservation Departmentt,GRANTS PAYABLE - PLACES OF WORSHIP
377,DCMS,EH,10/08/2012,St Francis of Assisi PCC,0082000474,"36,500.00 ",Heritage Protection & Planning Group - National Planning & Conservation Departmentt,GRANTS PAYABLE - PLACES OF WORSHIP
378,DCMS,EH,10/05/2012,PCC Hoar Cross,0082000160,"43,000.00 ",Heritage Protection & Planning Group - National Planning & Conservation Departmentt,GRANTS PAYABLE - PLACES OF WORSHIP
379,DCMS,EH,10/05/2012,St Mary's Martham PCC,0082000161,"52,000.00 ",Heritage Protection & Planning Group - National Planning & Conservation Departmentt,GRANTS PAYABLE - PLACES OF WORSHIP
380,DCMS,EH,22/06/2012,Felkirk PCC,0082000328,"55,000.00 ",Heritage Protection & Planning Group - National Planning & Conservation Departmentt,GRANTS PAYABLE - PLACES OF WORSHIP
381,DCMS,EH,15/05/2012,All Saints PCC,0082000180,"82,500.00 ",Heritage Protection & Planning Group - National Planning & Conservation Departmentt,GRANTS PAYABLE - PLACES OF WORSHIP
382,DCMS,EH,41096,All Saints PCC,0082000376,41250,Heritage Protection & Planning Group - National Planning & Conservation Departmentt,GRANTS PAYABLE - PLACES OF WORSHIP
383,DCMS,EH,24/08/2012,Birstall Parish Church PCC,0082000531,"89,500.00 ",Heritage Protection & Planning Group - National Planning & Conservation Departmentt,GRANTS PAYABLE - PLACES OF WORSHIP
384,DCMS,EH,24/08/2012,Great Yarmouth PCC,0082000532,"76,500.00 ",Heritage Protection & Planning Group - National Planning & Conservation Departmentt,GRANTS PAYABLE - PLACES OF WORSHIP
385,DCMS,EH,20/04/2012,Potter Heigham PCC Restoration Fund,0082000075,"40,000.00",Heritage Protection & Planning Group - National Planning & Conservation Departmentt,GRANTS PAYABLE - PLACES OF WORSHIP
386,DCMS,EH,20/04/2012,Potter Heigham PCC Restoration Fund,0082000076,"50,500.00",Heritage Protection & Planning Group - National Planning & Conservation Departmentt,GRANTS PAYABLE - PLACES OF WORSHIP
387,DCMS,EH,19/06/2012,"St Marys Church, Ludgershall PCC",0082000318,"89,000.00 ",Heritage Protection & Planning Group - National Planning & Conservation Departmentt,GRANTS PAYABLE - PLACES OF WORSHIP
388,DCMS,EH,18/06/2012,The PPC of Christ Church Walshaw,0082000308,"43,500.00 ",Heritage Protection & Planning Group - National Planning & Conservation Departmentt,GRANTS PAYABLE - PLACES OF WORSHIP
389,DCMS,EH,10/05/2012,St Mary's Rolleston PCC,0082000164,"35,500.00 ",Heritage Protection & Planning Group - National Planning & Conservation Departmentt,GRANTS PAYABLE - PLACES OF WORSHIP
390,DCMS,EH,41102,St Mary's Rolleston PCC,0082000397,28400,Heritage Protection & Planning Group - National Planning & Conservation Departmentt,GRANTS PAYABLE - PLACES OF WORSHIP
391,DCMS,EH,10/05/2012,St Philip with St Stephen PCC,0082000165,"58,500.00 ",Heritage Protection & Planning Group - National Planning & Conservation Departmentt,GRANTS PAYABLE - PLACES OF WORSHIP
392,DCMS,EH,14/08/2012,St Philip with St Stephen PCC,0082000490,"46,800.00 ",Heritage Protection & Planning Group - National Planning & Conservation Departmentt,GRANTS PAYABLE - PLACES OF WORSHIP
393,DCMS,EH,10/04/2012,PCC of Kentisbury,0082000006,"43,000.00",Heritage Protection & Planning Group - National Planning & Conservation Departmentt,GRANTS PAYABLE - PLACES OF WORSHIP
394,DCMS,EH,10/08/2012,PCC of Kentisbury,0082000477,"38,700.00 ",Heritage Protection & Planning Group - National Planning & Conservation Departmentt,GRANTS PAYABLE - PLACES OF WORSHIP
395,DCMS,EH,01/05/2012,PCC of Clitheroe Parish Church,0082000132,"61,000.00 ",Heritage Protection & Planning Group - National Planning & Conservation Departmentt,GRANTS PAYABLE - PLACES OF WORSHIP
396,DCMS,EH,18/05/2012,PCC of Thrybergh St Leonard's,0082000203,"58,000.00 ",Heritage Protection & Planning Group - National Planning & Conservation Departmentt,GRANTS PAYABLE - PLACES OF WORSHIP
397,DCMS,EH,10/05/2012,All Saints Perry Street PCC,0082000167,"83,500.00 ",Heritage Protection & Planning Group - National Planning & Conservation Departmentt,GRANTS PAYABLE - PLACES OF WORSHIP
398,DCMS,EH,10/05/2012,Church of St Augusti,0082000166,"42,500.00 ",Heritage Protection & Planning Group - National Planning & Conservation Departmentt,GRANTS PAYABLE - PLACES OF WORSHIP
399,DCMS,EH,24/08/2012,Gayton Thorpe PCC,0082000534,"95,000.00 ",Heritage Protection & Planning Group - National Planning & Conservation Departmentt,GRANTS PAYABLE - PLACES OF WORSHIP
400,DCMS,EH,10/05/2012,St Michaels & All Angels Great Houghton,0082000162,"119,500.00 ",Heritage Protection & Planning Group - National Planning & Conservation Departmentt,GRANTS PAYABLE - PLACES OF WORSHIP
401,DCMS,EH,41102,St Michaels & All Angels Great Houghton,0082000395,41500,Heritage Protection & Planning Group - National Planning & Conservation Departmentt,GRANTS PAYABLE - PLACES OF WORSHIP
402,DCMS,EH,41102,St Michaels & All Angels Great Houghton,0082000396,66050,Heritage Protection & Planning Group - National Planning & Conservation Departmentt,GRANTS PAYABLE - PLACES OF WORSHIP
403,DCMS,EH,20/04/2012,St Andrew's Church Wootton PCC,0082000073,"61,000.00",Heritage Protection & Planning Group - National Planning & Conservation Departmentt,GRANTS PAYABLE - PLACES OF WORSHIP
404,DCMS,EH,22/05/2012,St Buryan PCC,0082000222,"45,000.00 ",Heritage Protection & Planning Group - National Planning & Conservation Departmentt,GRANTS PAYABLE - PLACES OF WORSHIP
405,DCMS,EH,07/06/2012,Folke PCC,0082000279,"34,500.00 ",Heritage Protection & Planning Group - National Planning & Conservation Departmentt,GRANTS PAYABLE - PLACES OF WORSHIP
406,DCMS,EH,14/08/2012,Elveden Farms Ltd,0082000491,"32,416.00 ",Heritage Protection & Planning Group - National Planning & Conservation Departmentt,GRANTS PAYABLE - HISTORIC BUILDINGS
407,DCMS,EH,29/05/2012,Your Homes Newcastle,0082000245,"37,662.00 ",Heritage Protection & Planning Group - National Planning & Conservation Departmentt,GRANTS PAYABLE - HISTORIC BUILDINGS
408,DCMS,EH,10/05/2012,Bolton Methodist Mission,0082000170,"83,000.00 ",Heritage Protection & Planning Group - National Planning & Conservation Departmentt,GRANTS PAYABLE - PLACES OF WORSHIP
409,DCMS,EH,41114,St Mary Magdalene PCC,0082000424,50500,Heritage Protection & Planning Group - National Planning & Conservation Departmentt,GRANTS PAYABLE - PLACES OF WORSHIP
410,DCMS,EH,41096,Golders Green Synagogue,0082000379,47000,Heritage Protection & Planning Group - National Planning & Conservation Departmentt,GRANTS PAYABLE - PLACES OF WORSHIP
411,DCMS,EH,41117,"PCC of Holy Trinity Church, Elsecar",0082000437,63000,Heritage Protection & Planning Group - National Planning & Conservation Departmentt,GRANTS PAYABLE - PLACES OF WORSHIP
412,DCMS,EH,41110,Sutton-in-Ashfield United Reformed Churc,0082000414,74000,Heritage Protection & Planning Group - National Planning & Conservation Departmentt,GRANTS PAYABLE - PLACES OF WORSHIP
413,DCMS,EH,41102,PCC Christ Church,0082000398,47000,Heritage Protection & Planning Group - National Planning & Conservation Departmentt,GRANTS PAYABLE - PLACES OF WORSHIP
414,DCMS,EH,22/06/2012,Hastings Borough Council,0082000334,"91,218.00 ",Heritage Protection & Planning Group - National Planning & Conservation Departmentt,GRANTS PAYABLE - HISTORIC BUILDINGS
415,DCMS,EH,29/06/2012,The Ruins of Brambletye,0082000359,"25,000.00 ",Heritage Protection & Planning Group - National Planning & Conservation Departmentt,GRANTS PAYABLE - HISTORIC BUILDINGS
416,DCMS,EH,41110,Farnworth Parochial Church Council,0082000415,26500,Heritage Protection & Planning Group - National Planning & Conservation Departmentt,GRANTS PAYABLE - PLACES OF WORSHIP
417,DCMS,EH,41110,UK Historic Building Preservation Trust,0082000420,57678,Heritage Protection & Planning Group - National Planning & Conservation Departmentt,GRANTS PAYABLE - HISTORIC BUILDINGS
418,DCMS,EH,24/08/2012,Boxley Abbey Hospital,0082000538,"51,000.00 ",Heritage Protection & Planning Group - National Planning & Conservation Departmentt,GRANTS PAYABLE - HISTORIC BUILDINGS
419,DCMS,EH,18/04/2012,Forest Products,0001077029,"34,452.01",National Collections Group - Historic Properties Department,Retail Goods & Souvenirs Purch
